Cogmind - Beta 15 X1 @@@ ROGUE MODE // 2024.11.14 @ 19:08:00 Player: H3-RMN Result: Destroyed by X-77 Beamer with Gatling Laser Performance ------------- Evolutions (5) 2500 Regions Visited (12) 2400 Robots Destroyed (73) 365 Value Destroyed (3302) 3302 Prototype IDs (33) 660 Alien Tech Used (0) 0 Bonus (2839) 2839 TOTAL SCORE: 12066 Bonus ------- High Alert Combat Kills 433 Follower Combat Kills 1306 Entered DSFs 500 Registered with UFD 300 Met Imprinter 300 Cogmind --------- Core Integrity 0/1000 Matter 278/300 Energy 100/100 System Corruption 0% Temperature Cool (6) Movement Core (50) Location -5/DSF Parts ------- > --- POWER (2) -------- (None) > --- PROPULSION (5) --- (None) > --- UTILITY (8) ------ (None) > --- WEAPON (2) ------- Makeshift Spear > --- INVENTORY (5) ---- Transmission Jammer Makeshift Hacking Suite Force Rifle Multitool CR-A16's Pointy Stick Peak State ------------ > --- POWER ------------ Light Angular Momentum Engine > --- PROPULSION ------- Flightbrick > --- UTILITY ---------- Large Storage Unit Gravity Neutralizer Advanced Signal Interpreter Experimental Targeting Computer Advanced Melee Analysis Suite Transmission Jammer Improved Utility Shielding Hacking Suite System Shield Improved System Shield > --- WEAPON ----------- Heavy Hardcell Cannon > --- INVENTORY -------- Enhanced Scrap Shield Hacking Suite Cobbler Unit Force Rifle Powered Cannon Improved Proton Missile Launcher CPS Tube Multitool Phasing Sabre Phasing Sabre [Rating: 106] Favorites ----------- Power Subdweller Power Source Engine Subdweller Power Source Power Core Nuclear Core Reactor Micro Antimatter Reactor Propulsion Spiked Treads Treads Spiked Treads Leg Flexi-carbon Leg Wheel Subdweller Monowheel Flight Unit Flightbrick Utility Large Storage Unit Device Subdweller Optics Storage Large Storage Unit Processor Advanced Signal Interpreter Hackware Hacking Suite Protection Improved Utility Shielding Weapon Battle Cannon Energy Gun EM Pulse Gun Energy Cannon Subdweller Beam Cannon Ballistic Gun Bolt Gun Ballistic Cannon Battle Cannon Launcher Grenade Launcher Special Weapon CPS Tube Impact Weapon Powered Hammer Slashing Weapon Axe Piercing Weapon Makeshift Spear Special Melee Weapon Datajack Build | -11 -10 -10 -8 -6 -6 -6 -6 -6 -6 -5 -5 -5 ------- Run | Yrd Mat Sub Scr Fac Was Fac Low Low Zio Pro Fac DSF Slots Evolved 10 | . . . . 8 . . . . . . 2 . Power 1 | . . . . 1 . . . . . . . . Propulsion 3 | . . . . 2 . . . . . . 1 . Utility 6 | . . . . 5 . . . . . . 1 . Weapon . | . . . . . . . . . . . . . Parts Attached 126 | 7 2 17 9 36 1 24 2 1 8 4 3 12 Power 16 | 1 . 1 1 4 1 5 1 . 1 . . 1 Engine 10 | 1 . 1 . 3 . 3 1 . 1 . . . Core 3 | . . . 1 1 . 1 . . . . . . Reactor 3 | . . . . . 1 1 . . . . . 1 Propulsion 22 | 2 . 5 2 5 . . . . . 3 2 3 Treads 7 | 1 . 2 1 2 . . . . . 1 . . Leg 5 | . . . 1 . . . . . . 1 2 1 Wheel 7 | 1 . 3 . 2 . . . . . 1 . . Hover . | . . . . . . . . . . . . . Flight 3 | . . . . 1 . . . . . . . 2 Utility 45 | 2 1 3 3 16 . 9 1 . 5 1 . 4 Device 24 | 1 . 3 . 7 . 7 1 . 1 . . 4 Storage 5 | 1 1 . 2 . . 1 . . . . . . Processor 4 | . . . . 4 . . . . . . . . Hackware 7 | . . . . 3 . 1 . . 3 . . . Protection 5 | . . . 1 2 . . . . 1 1 . . Artifact . | . . . . . . . . . . . . . Weapon 43 | 2 1 8 3 11 . 10 . 1 2 . 1 4 Energy Gun 14 | 1 . 2 2 6 . 1 . . . . . 2 Energy Cannon 2 | . . 1 . . . . . . . . 1 . Ballistic Gun 4 | 1 . 2 1 . . . . . . . . . Ballistic Cannon 5 | . . 1 . 1 . 1 . . 1 . . 1 Launcher 2 | . 1 . . . . 1 . . . . . . Special Weapon 7 | . . 1 . 2 . 3 . . . . . 1 Impact Weapon 2 | . . . . 1 . . . 1 . . . . Slashing Weapon 3 | . . . . 1 . 2 . . . . . . Piercing Weapon 3 | . . 1 . . . 1 . . 1 . . . Special Melee Weapon 1 | . . . . . . 1 . . . . . . Unidentified Prototypes 12 | . . . . 4 . 5 . . 3 . . . Corrupted Parts 3 | . . . . . . 2 . . 1 . . . System Corruption 8 | . . . . . . 6 . . 2 . . . Parts Lost 35 | . . 1 . 9 . 4 . . . 2 2 17 Power 7 | . . . . 3 . 2 . . . 1 . 1 Propulsion 11 | . . . . 2 . . . . . 1 1 7 Utility 9 | . . 1 . 3 . 1 . . . . . 4 Weapon 8 | . . . . 1 . 1 . . . . 1 5 Highest Loss Streak 9 | . . 1 . 8 . 1 . . . 1 2 9 To Critical Strikes . | . . . . . . . . . . . . . Average Backups 12 | 2 10 10 12 23 12 12 11 11 11 12 13 9 Power . | . 1 . . 1 . . . . . . . . Propulsion 1 | . 3 2 2 3 . . . . . 1 2 . Utility 3 | . . 2 4 4 4 3 3 3 2 2 2 2 Weapon 5 | . 5 4 4 11 7 6 6 6 6 6 7 4 Tool/Special . | . . . . . . . . . . . . . Unused Backups 27 | . 1 11 1 5 1 3 1 . 1 . . 3 Power 1 | . . 1 . . . . . . . . . . Propulsion 6 | . 1 4 . 1 . . . . . . . . Utility 7 | . . 1 1 1 1 1 . . 1 . . 1 Weapon 13 | . . 5 . 3 . 2 1 . . . . 2 Tool/Special . | . . . . . . . . . . . . . Average Slot Usage (%) 87 | . 100 99 90 69 80 78 76 77 73 75 69 46 Engine 9 | . 14 14 8 5 7 4 5 5 5 7 5 . Core 1 | . . . 5 2 . . . . . . . . Treads 13 | . 14 21 19 7 . . . . . 4 5 . Wheel 5 | . 14 6 8 4 . . . . . 2 2 . Flight 1 | . . . . 1 5 5 5 5 5 1 . 3 Device 9 | . 14 13 5 6 11 11 11 11 11 7 5 6 Storage 10 | . 14 14 14 5 5 5 5 5 5 5 5 4 Processor 4 | . . . . 6 22 16 16 16 16 4 . . Hackware 5 | . . . . 8 16 21 16 16 12 18 16 12 Protection 1 | . . . . 4 . . 4 5 4 9 11 3 Energy Gun 7 | . 14 9 14 5 2 . . . . . . 1 Ballistic Gun 3 | . 14 4 5 . . . . . . . . . Ballistic Cannon 4 | . . 6 8 . . . . . . 3 2 2 Piercing Weapon 3 | . . 5 . . . 3 11 11 10 4 . . Peak Build Rating 106 | 7 8 20 28 88 96 104 102 97 106 104 63 63 Average Rating 41 | 4 7 16 20 68 92 94 97 96 94 67 60 34 On Entrance 58 | . 7 8 20 26 88 96 98 97 97 96 60 63 Naked Turns 1 | . . . . . . . . . . . . 1 Heaviest Build 239 | 15 30 38 209 239 36 43 36 36 41 60 55 50 Greatest Support 60 | 20 10 40 42 43 33 36 36 36 36 36 60 40 Greatest Overweight (x) 16 | 1 2 3 10 11 1 1 . . 1 5 5 16 Average Overweight (x) 1 | . 1 1 1 3 . . . . . 2 2 1 Largest Inventory Capacity 35 | 8 15 15 35 35 15 15 15 15 15 15 15 15 Average Capacity 18 | 7 12 15 22 28 15 15 15 15 15 15 15 14 Most Carried 35 | 4 15 15 34 35 15 15 15 15 15 15 15 13 Average Carried 16 | 2 10 14 18 27 14 14 14 15 14 14 13 9 Final Capacity 35 | 8 15 15 35 15 15 15 15 15 15 15 15 5 Final Carried 33 | 4 15 15 33 15 14 15 15 15 15 15 13 5 Class Distribution -------------------- 51% | Mutant 16% | Hacker-Mutant 13% | Hacker-Gladiator 10% | Hauler-Mutant 6% | Hauler-Scrapper Dominant Class ---------------- Mutant | -10/Materials Mutant | -10/Subcaves Mutant | -8/Scraptown Hauler-Scrapper | -6/Factory Hacker-Mutant | -6/Waste Hacker-Mutant | -6/Factory Hacker-Gladiator | -6/Lower Caves Hacker-Gladiator | -6/Lower Caves Hacker-Gladiator | -6/Zion Hacker-Mutant | -5/Proximity Caves Scavenger-Mutant | -5/Factory Hacker-Mutant | -5/DSF Resources | -11 -10 -10 -8 -6 -6 -6 -6 -6 -6 -5 -5 -5 ----------- Run | Yrd Mat Sub Scr Fac Was Fac Low Low Zio Pro Fac DSF Matter Collected 3051 | 273 265 497 159 577 110 411 69 30 59 383 . 218 Remotely . | . . . . . . . . . . . . . Salvage Created 3576 | 24 222 521 . 1071 . 876 355 . . 202 77 228 Parts 178 | 2 12 39 . 47 . 45 7 . . 8 4 14 Haulers Intercepted 8 | . 2 . . 3 . 3 . . . . . . Recyclers Shooed 2 | . . . . 1 . 1 . . . . . . Parts Field Recycled . | . . . . . . . . . . . . . Retrieved Matter . | . . . . . . . . . . . . . Parts Self-Destructed 24 | . . 8 . . . . 9 . . 7 . . Prevented . | . . . . . . . . . . . . . Kills | -11 -10 -10 -8 -6 -6 -6 -6 -6 -6 -5 -5 -5 ------- Run | Yrd Mat Sub Scr Fac Was Fac Low Low Zio Pro Fac DSF Combat Hostiles Destroyed 55 | . 4 14 . 13 . 11 2 . . 6 2 3 Melee 24 | . . 5 . 5 . 9 2 . . 1 . 2 Guns 8 | . 1 3 . 4 . . . . . . . . Cannons 12 | . . 3 . 1 . . . . . 5 2 1 AOE 8 | . 3 3 . . . 2 . . . . . . Classes Destroyed 15 | 1 5 3 . 4 . 2 . . . . . . Worker 2 | . 1 . . 1 . . . . . . . . Tunneler 1 | 1 . . . . . . . . . . . . Hauler 8 | . 2 . . 3 . 3 . . . . . . Operator 3 | . . . . 1 . 2 . . . . . . Watcher 4 | . 2 . . 1 . 1 . . . . . . Swarmer 5 | . 3 . . . . 2 . . . . . . Grunt 16 | . 1 . . 8 . 1 1 . . 5 . . Duelist 1 | . . . . 1 . . . . . . . . Sentry 3 | . . . . 1 . 1 . . . 1 . . Specialist 5 | . . . . . . 2 . . . . . 3 Hunter 4 | . . . . . . 2 . . . . 2 . Programmer 7 | . . . . 3 . 3 1 . . . . . Artisan 1 | . . 1 . . . . . . . . . . Cobbler 1 | . . 1 . . . . . . . . . . Subdweller 14 | . . 14 . . . . . . . . . . Best Kill Streak 5 | 1 5 3 . 4 . 5 2 . . 5 2 1 Combat Bots Only 5 | . 3 3 . 3 . 4 2 . . 5 2 1 Max Kills in Single Turn 2 | 1 2 2 . 2 . 2 1 . . 1 1 1 Gunslinging . | . . . . . . . . . . . . . Exploded 2 | . 2 2 . . . 2 . . . . . . Melee 2 | . . 1 . 2 . 1 1 . . 1 . 1 Uniques/NPCs Destroyed . | . . . . . . . . . . . . . Combat | -11 -10 -10 -8 -6 -6 -6 -6 -6 -6 -5 -5 -5 -------- Run | Yrd Mat Sub Scr Fac Was Fac Low Low Zio Pro Fac DSF Hostile Shots Fired 821 | . 9 69 . 214 . 193 13 12 . 55 21 235 Missed 241 | . 3 19 . 58 . 76 3 7 . 15 6 54 Damage Taken 9217 | . 60 1047 . 2344 . 2020 259 65 . 781 256 2385 Core 1949 | . . 232 . 233 . 255 120 6 . 99 33 971 Absorbed by Shields 6 | . . . . . . 6 . . . . . . Redirected to Shielding 101 | . . . . . . . . . . . 20 81 Ignored by Resistances 36 | . . . . 36 . . . . . . . . Regen/Repaired (Parts) 164 | . . . . 142 22 . . . . . . . Core Remaining (%) 41 | 100 . . 7 . . . . . . 16 . . Volleys Fired 180 | 1 20 70 . 42 . 7 . . . 16 10 14 Largest 2 | 2 2 2 . 2 . 1 . . . 1 1 2 Hottest 160 | 70 70 120 . 160 . 43 . . . 68 68 40 Shots Fired 258 | 2 38 110 . 60 . 7 . . . 16 10 15 Gun 154 | 2 36 75 . 41 . . . . . . . . Cannon 85 | . . 30 . 15 . . . . . 16 10 14 Launcher 10 | . 2 4 . . . 4 . . . . . . Special 9 | . . 1 . 4 . 3 . . . . . 1 Kinetic 127 | 1 18 62 . 15 . . . . . 16 5 10 Thermal 96 | 1 18 35 . 33 . . . . . . 5 4 Explosive 6 | . 2 4 . . . . . . . . . . Electromagnetic 21 | . . 9 . 8 . 4 . . . . . . Robot Hit Streak 17 | 1 14 15 . 16 . 17 . . . 5 3 6 Robot Miss Streak 4 | . 1 2 . 2 . . . . . 2 1 4 Penetration Max . | . . . . . . . . . . . . . Secondary Targets . | . . . . . . . . . . . . . Shots Hit Robots 308 | 1 30 94 . 87 . 48 8 . . 16 6 18 Core Hits 115 | 1 14 27 . 26 . 24 8 . . 7 2 6 Critical Kills 1 | . . . . 1 . . . . . . . . Critical Parts Destroyed 2 | . . . . 2 . . . . . . . . Critical Strikes 22 | . 2 8 . 8 . 2 1 . . 1 . . Burn 10 | . 2 5 . 3 . . . . . . . . Destroy 1 | . . . . 1 . . . . . . . . Blast 1 | . . . . . . . . . . 1 . . Smash 2 | . . . . 2 . . . . . . . . Sever 3 | . . . . 2 . 1 . . . . . . Impale 5 | . . 3 . . . 1 1 . . . . . Melee Attacks 215 | . . 61 . 51 . 60 13 5 1 7 . 17 Impact 33 | . . . . 33 . . . . . . . . Slashing 53 | . . . . 18 . 22 . . . . . 13 Piercing 128 | . . 61 . . . 37 13 5 1 7 . 4 Sneak Attacks 14 | . . 4 . 4 . 5 . . . 1 . . Combat Hostiles 1 | . . . . . . . . . . 1 . . Follow-up Attacks 11 | . . . . 6 . 4 1 . . . . . Damage Inflicted 10374 | 13 551 1983 . 2862 . 2185 420 . . 1224 482 654 Guns 1923 | 13 374 811 . 725 . . . . . . . . Cannons 2118 | . . 177 . 309 . . . . . 1055 304 273 Explosions 1268 | . 177 464 . . . 449 . . . . 178 . Melee 5065 | . . 531 . 1828 . 1736 420 . . 169 . 381 Ramming . | . . . . . . . . . . . . . Kinetic 2354 | 13 157 559 . 309 . . . . . 1055 172 89 Thermal 1623 | . 217 354 . 558 . . . . . . 310 184 Explosive 723 | . 177 464 . . . 82 . . . . . . Electromagnetic 609 | . . 75 . 167 . 367 . . . . . . Impact 1323 | . . . . 1323 . . . . . . . . Slashing 1636 | . . . . 505 . 871 . . . . . 260 Piercing 2106 | . . 531 . . . 865 420 . . 169 . 121 Highest Corruption 15 | . . . . 5 3 14 15 15 15 . . . Average Corruption 7 | . . . . 2 3 8 14 15 12 . . . Corruption Purged 5 | . . . . 2 . 3 . . . . . . Corruption Blocked . | . . . . . . . . . . . . . Effects 44 | . . . . 13 5 9 10 7 . . . . Message Errors 7 | . . . . 2 . 2 2 1 . . . . Matter Fused 14 | . . . . 2 . 4 4 4 . . . . Heat Flow Errors 5 | . . . . 1 3 . 1 . . . . . Energy Discharges 10 | . . . . 5 1 1 2 1 . . . . Data Loss (minor) 2 | . . . . 1 . 1 . . . . . . Data Loss (major) 4 | . . . . 2 1 . . 1 . . . . Alerts 1 | . . . . . . 1 . . . . . . Misdirections 1 | . . . . . . . 1 . . . . . Overload Shots . | . . . . . . . . . . . . . Overflow Damage 595 | . . . . 248 . 184 . . . 96 62 5 Projectiles 115 | . . . . . . . . . . 96 19 . Explosions 67 | . . . . . . 24 . . . . 43 . Melee 413 | . . . . 248 . 160 . . . . . 5 Knockbacks 15 | . . . . 5 . . . . . 9 1 . Impact 1 | . . . . 1 . . . . . . . . Kinetic 12 | . . . . 4 . . . . . 7 1 . Secondary 2 | . . . . . . . . . . 2 . . Self-Inflicted Damage 29 | . 3 . . . . 26 . . . . . . Shots 2 | . 1 . . . . 1 . . . . . . Rammed . | . . . . . . . . . . . . . Targets Rammed . | . . . . . . . . . . . . . Kicked . | . . . . . . . . . . . . . Crushed . | . . . . . . . . . . . . . Highest Temperature 403 | 9 54 3 . 403 245 . 208 . . 183 72 33 Average Temperature 96 | 6 16 3 . 133 88 . 92 . . 116 35 18 Received Heat Transfer 2619 | . 18 96 . 975 . 132 99 12 . 291 . 996 Effects 3 | . . . . 3 . . . . . . . . Interference 3 | . . . . 3 . . . . . . . . Siege Activations . | . . . . . . . . . . . . . Martial Activations . | . . . . . . . . . . . . . Shielding Activations . | . . . . . . . . . . . . . Robots Disrupted . | . . . . . . . . . . . . . Combat Hostiles . | . . . . . . . . . . . . . Robots Corrupted 6 | . . . . 6 . . . . . . . . Combat Hostiles 3 | . . . . 3 . . . . . . . . Parts Fried 3 | . . . . 3 . . . . . . . . Impact Corruptions 9 | . . . . 9 . . . . . . . . Robots Melted . | . . . . . . . . . . . . . Combat Hostiles . | . . . . . . . . . . . . . Parts Melted 11 | . 4 3 . 2 . 2 . . . . . . Heat Transferred 3638 | . 777 1369 . 1392 . . . . . . 100 . Parts Sabotaged . | . . . . . . . . . . . . . Parts Stolen . | . . . . . . . . . . . . . Parts Stripped . | . . . . . . . . . . . . . Power Chain Reactions . | . . . . . . . . . . . . . Alert | -11 -10 -10 -8 -6 -6 -6 -6 -6 -6 -5 -5 -5 ------- Run | Yrd Mat Sub Scr Fac Was Fac Low Low Zio Pro Fac DSF Maximum Alert Level 4 | . . . . . . 4 . . . . 1 . Low Security (%) 71 | 100 100 . . 100 100 18 . . . . 49 100 Level 1 3 | . . . . . . 5 . . . . 50 . Level 2 5 | . . . . . . 16 . . . . . . Level 3 6 | . . . . . . 19 . . . . . . Level 4 12 | . . . . . . 39 . . . . . . Level 5 . | . . . . . . . . . . . . . High Security . | . . . . . . . . . . . . . Max Security . | . . . . . . . . . . . . . Peak Influence 1536 | . 104 . . 117 33 1536 . . . . 273 184 Initial 184 | . . . . . 33 . . . . . . 184 Average 303 | . 43 . . 29 5 839 . . . . 131 123 Influence Increases 4217 | 5 205 . . 459 . 2861 140 15 . 130 326 76 Destroy 0b10 Robot/C 1560 | . 80 . . 260 . 960 40 . . 120 40 60 Destroy 0b10 Robot/NC 155 | 5 25 . . 30 . 80 15 . . . . . Destroy Leader 378 | . 18 . . 68 . 252 10 . . 10 10 10 Allied During Kill 918 | . . . . . . 918 . . . . . . Trap Triggered on 0b10 30 | . . . . . . 30 . . . . . . Successful Hack 152 | . 15 . . 56 . 78 . . . . 3 . Select Force Hacks 30 | . . . . . . . . . . . 30 . Disable Machine 195 | . 15 . . . . 135 . . . . 45 . Anti-Garrison Action 300 | . . . . . . 150 . . . . 150 . Destroy Structure 169 | . 7 . . . . 108 . . . . 48 6 Partial Spotted 30 | . . . . 15 . 15 . . . . . . Lose Combat Pursuer 300 | . 45 . . 30 . 135 75 15 . . . . Influence Decreases 2518 | 5 181 12 . 362 33 1342 130 90 . 130 63 170 Time Decay 1368 | 5 181 12 . 272 33 472 130 90 . 130 43 . Lost Part 320 | . . . . 90 . 40 . . . . 20 170 Lost Ally 530 | . . . . . . 530 . . . . . . Purge Threat 300 | . . . . . . 300 . . . . . . Squads Dispatched 37 | . . . . 7 . 25 . . . . 3 2 Investigation 12 | . . . . 2 . 9 . . . . 1 . Extermination 5 | . . . . 3 . 2 . . . . . . Reinforcement 11 | . . . . 2 . 6 . . . . 1 2 Assault 6 | . . . . . . 5 . . . . 1 . Garrison 3 | . . . . . . 3 . . . . . . Intercept . | . . . . . . . . . . . . . Searches Triggered . | . . . . . . . . . . . . . Construction Impeded 1 | . . . . . . 1 . . . . . . Haulers Reinforced 2 | . . . . 1 . 1 . . . . . . Active Scanning Responses . | . . . . . . . . . . . . . Cargo Convoy Interrupts 1 | . . . . . . 1 . . . . . . Stealth | -11 -10 -10 -8 -6 -6 -6 -6 -6 -6 -5 -5 -5 --------- Run | Yrd Mat Sub Scr Fac Was Fac Low Low Zio Pro Fac DSF Distress Signals 7 | . 2 . . 1 . 4 . . . . . . Communications Jammed . | . . . . . . . . . . . . . Distress Signals . | . . . . . . . . . . . . . Times Spotted 130 | . 10 14 . 20 . 55 10 2 . 6 3 10 Peak Tracking Total 10 | . 5 3 . 5 . 10 7 1 . 4 2 5 Tactical Retreats 11 | . 1 . . 2 . 4 3 1 . . . . Traps | -11 -10 -10 -8 -6 -6 -6 -6 -6 -6 -5 -5 -5 ------- Run | Yrd Mat Sub Scr Fac Was Fac Low Low Zio Pro Fac DSF Traps Triggered 5 | . . . . 2 . 2 1 . . . . . Indirectly . | . . . . . . . . . . . . . Trap Hack Attempts 24 | . . . . . . 24 . . . . . . Triggered . | . . . . . . . . . . . . . Disarmed 6 | . . . . . . 6 . . . . . . Reprogrammed 3 | . . . . . . 3 . . . . . . Reused 3 | . . . . . . 3 . . . . . . Traps Extracted . | . . . . . . . . . . . . . Installed . | . . . . . . . . . . . . . Triggered 3 | . . . . . . 3 . . . . . . Machines | -11 -10 -10 -8 -6 -6 -6 -6 -6 -6 -5 -5 -5 ---------- Run | Yrd Mat Sub Scr Fac Was Fac Low Low Zio Pro Fac DSF Machines Disabled 16 | . 1 1 . . . 10 . . . . 4 . Max in Single Turn 3 | . 1 1 . . . 2 . . . . 3 . Garrison Access 3 | . . . . 1 . 1 . . . . 1 . Machines Repaired . | . . . . . . . . . . . . . Machines Dismantled . | . . . . . . . . . . . . . Machines Sabotaged . | . . . . . . . . . . . . . Overloaded Fab Kills . | . . . . . . . . . . . . . Hacking | -11 -10 -10 -8 -6 -6 -6 -6 -6 -6 -5 -5 -5 --------- Run | Yrd Mat Sub Scr Fac Was Fac Low Low Zio Pro Fac DSF Machines Accessed 42 | . 5 2 1 12 . 15 2 . 1 . 4 . Terminals 22 | . 5 . . 6 . 8 1 . . . 2 . Fabricators 4 | . . . . 2 . 2 . . . . . . Repair Stations 2 | . . . . 2 . . . . . . . . Recycling Units 3 | . . . . 1 . 2 . . . . . . Scanalyzers 4 | . . . . . . 2 . . . . 2 . Garrison Access 2 | . . . . 1 . 1 . . . . . . Total Hacks 168 | . 12 6 5 37 . 92 2 . 4 . 10 . Successful 102 | . 5 6 5 14 . 58 2 . 4 . 8 . Failed 64 | . 6 . . 23 . 33 . . . . 2 . Catastrophic 12 | . . . . 6 . 5 . . . . 1 . Database Lockouts 2 | . 1 . . . . 1 . . . . . . Manual 49 | . 7 . . 5 . 35 . . . . 2 . Terminals 83 | . 12 . . 22 . 45 1 . . . 3 . Fabricators 11 | . . . . 6 . 5 . . . . . . Repair Stations 4 | . . . . 4 . . . . . . . . Recycling Units 7 | . . . . 2 . 5 . . . . . . Scanalyzers 38 | . . . . . . 31 . . . . 7 . Garrison Access 9 | . . . . 3 . 6 . . . . . . Terminal Hacks 42 | . 3 6 5 6 . 15 2 . 4 . 1 . Record 6 | . . 5 . . . . 1 . . . . . Part Schematic 10 | . . . . 2 . 4 . . 4 . . . Robot Schematic 1 | . . . . 1 . . . . . . . . Robot Analysis 7 | . 1 . 5 1 . . . . . . . . Prototype ID Bank 3 | . . . . . . 3 . . . . . . Open Door 1 | . . . . . . . 1 . . . . . Open DSF 1 | . . . . . . . . . . . 1 . Branch Access Points 1 | . . . . 1 . . . . . . . . Terminal Index 1 | . . . . . . 1 . . . . . . Fabricator Index 1 | . . . . . . 1 . . . . . . Unreport Threat 2 | . . . . . . 2 . . . . . . Locate Traps 3 | . 1 . . 1 . 1 . . . . . . Disarm Traps 1 | . . . . . . 1 . . . . . . Recall Assault 1 | . . . . . . 1 . . . . . . Hauler Manifests 1 | . . . . . . 1 . . . . . . Zone Layout 1 | . 1 . . . . . . . . . . . Derelict Proto ID Bank 1 | . . 1 . . . . . . . . . . Fabricator Hacks 3 | . . . . 1 . 2 . . . . . . Network Status 1 | . . . . 1 . . . . . . . . Load Schematic 1 | . . . . . . 1 . . . . . . Build 1 | . . . . . . 1 . . . . . . Repair Station Hacks 3 | . . . . 3 . . . . . . . . Scan Component 1 | . . . . 1 . . . . . . . . Repair 1 | . . . . 1 . . . . . . . . Refit 1 | . . . . 1 . . . . . . . . Recycling Unit Hacks 3 | . . . . 1 . 2 . . . . . . Report Inventory 3 | . . . . 1 . 2 . . . . . . Scanalyzer 32 | . . . . . . 26 . . . . 6 . Insert Component 14 | . . . . . . 11 . . . . 3 . Analyze 18 | . . . . . . 15 . . . . 3 . Garrison Access Hacks 1 | . . . . 1 . . . . . . . . Seal Access 1 | . . . . 1 . . . . . . . . Unauthorized Hacks 18 | . 2 . . 2 . 13 . . . . 1 . Terminals 11 | . 2 . . . . 9 . . . . . . Botnet 2 | . . . . . . 2 . . . . . . Operators 2 | . 1 . . . . 1 . . . . . . Skim 7 | . 1 . . . . 6 . . . . . . Fabricators 1 | . . . . 1 . . . . . . . . Haulers 1 | . . . . 1 . . . . . . . . Repair Stations 3 | . . . . 1 . 2 . . . . . . Recycling Units . | . . . . . . . . . . . . . Scrapoids 3 | . . . . 1 . 2 . . . . . . Scanalyzers 1 | . . . . . . . . . . . 1 . Extract 1 | . . . . . . . . . . . 1 . Garrison Access 2 | . . . . . . 2 . . . . . . Redirect 1 | . . . . . . 1 . . . . . . Reprogram 1 | . . . . . . 1 . . . . . . Data Cores Recovered 1 | . . . . . . 1 . . . . . . Used 1 | . . . . . . 1 . . . . . . Hacking Detections 30 | . 5 . . 9 . 12 . . . . 4 . Full Trace Events 4 | . . . . . . 4 . . . . . . Feedback Events 1 | . . . . . . 1 . . . . . . Hackware Fried 1 | . . . . . . 1 . . . . . . Feedback Blocked . | . . . . . . . . . . . . . Robot Schematics Acquired 3 | . . . . 1 . . . . 2 . . . Robots Built . | . . . . . . . . . . . . . Authchips . | . . . . . . . . . . . . . Time . | . . . . . . . . . . . . . Total Robot Build Rating . | . . . . . . . . . . . . . Part Schematics Acquired 46 | . . . . 2 . 14 . . 18 . 12 . Parts Built 1 | . . . . . . 1 . . . . . . Authchips . | . . . . . . . . . . . . . Time 76 | . . . . . . 76 . . . . . . Total Part Build Rating 5 | . . . . . . 5 . . . . . . Parts Repaired 1 | . . . . 1 . . . . . . . . Time 56 | . . . . 56 . . . . . . . . Parts Recycled . | . . . . . . . . . . . . . Recycled Matter . | . . . . . . . . . . . . . Retrieved Matter . | . . . . . . . . . . . . . Retrieved Components . | . . . . . . . . . . . . . Parts Scanalyzed 14 | . . . . . . 11 . . . . 3 . Part Schematics Acquired 13 | . . . . . . 10 . . . . 3 . Parts Damaged 1 | . . . . . . 1 . . . . . . Bothacking | -11 -10 -10 -8 -6 -6 -6 -6 -6 -6 -5 -5 -5 ------------ Run | Yrd Mat Sub Scr Fac Was Fac Low Low Zio Pro Fac DSF Used RIF Installer . | . . . . . . . . . . . . . Robots Hacked 1 | . . . . . . 1 . . . . . . Non-combat 1 | . . . . . . 1 . . . . . . Combat . | . . . . . . . . . . . . . Robot Hacks Applied 1 | . . . . . . 1 . . . . . . find_recycling 1 | . . . . . . 1 . . . . . . Relay Couplers Released 3 | . . . . . . 1 . . . . 2 . Machine Destruction 3 | . . . . . . 1 . . . . 2 . Fabnet Peak Effective % . | . . . . . . . . . . . . . Robots Rewired . | . . . . . . . . . . . . . Allies Hacked . | . . . . . . . . . . . . . Hacks Repelled . | . . . . . . . . . . . . . Allies | -11 -10 -10 -8 -6 -6 -6 -6 -6 -6 -5 -5 -5 -------- Run | Yrd Mat Sub Scr Fac Was Fac Low Low Zio Pro Fac DSF Total Allies 31 | . . . . . 20 11 . . . . . . Largest Group 22 | . . . . . 20 22 . . . . . . Highest-Rated Group 843 | . . . . . 797 843 . . . . . . Highest-Rated Ally 50 | . . . . . 50 50 . . . . . . Total Orders 6 | . . . . . . 6 . . . . . . EXPLORE 6 | . . . . . . 6 . . . . . . Ally Attacks 273 | . . . . . . 273 . . . . . . Total Damage 6796 | . . . . . . 6796 . . . . . . Kills 51 | . . . . . . 51 . . . . . . Allies Corrupted 3 | . . . . . . 3 . . . . . . Allies Melted 1 | . . . . . . 1 . . . . . . Intel | -11 -10 -10 -8 -6 -6 -6 -6 -6 -6 -5 -5 -5 ------- Run | Yrd Mat Sub Scr Fac Was Fac Low Low Zio Pro Fac DSF Active Infowar (turns) 4114 | 27 500 1762 . 32 262 943 7 . 2 415 157 7 Optics 1602 | . . 1602 . . . . . . . . . . Sensors 1222 | . . . . 32 262 928 . . . . . . Seismic 687 | 27 500 160 . . . . . . . . . . Jamming 603 | . . . . . . 15 7 . 2 415 157 7 Robot Analysis Total 7 | . 1 . 5 1 . . . . . . . . Derelict Logs Recovered 12 | . . 3 3 . . . 1 1 2 2 . . Drone Launches 9 | . . . . . . 9 . . . . . . Drone Recoveries 3 | . . . . . . 3 . . . . . . Exploration | -11 -10 -10 -8 -6 -6 -6 -6 -6 -6 -5 -5 -5 ------------- Run | Yrd Mat Sub Scr Fac Was Fac Low Low Zio Pro Fac DSF Turns Passed 13507 | 75 500 4220 3523 1341 262 1256 264 189 593 852 157 275 Spaces Moved 9662 | 61 386 2323 1328 926 312 1682 511 437 952 591 86 67 Core 33 | 5 . . . . . . . . . 1 . 27 Treads 2047 | 4 . 1050 928 13 . . . . . 48 4 . Legs 123 | . . . . . . . . . . 59 43 21 Wheels 2681 | 52 386 1273 400 338 . . . . . 193 39 . Hover . | . . . . . . . . . . . . . Flight 4778 | . . . . 575 312 1682 511 437 952 290 . 19 Fastest Speed 40 | 50 95 110 120 40 40 40 40 40 40 40 120 50 Average Speed 111 | 92 104 139 261 91 52 41 40 40 53 125 150 191 Slowest Speed 1160 | 160 110 160 1160 240 80 80 40 40 80 320 260 850 Overloaded Moves . | . . . . . . . . . . . . . Propulsion Burnouts . | . . . . . . . . . . . . . Robots Hopped 12 | . . . . . 2 6 . 4 . . . . Cave-ins Triggered . | . . . . . . . . . . . . . Exploration Rate (%) 55 | 3 61 96 84 27 95 39 69 58 85 72 2 33 Regions Visited 12 Branch Regions 6 Pre-discovered Areas 8 | . . 3 2 . . . . . 3 . . . Known Exits Taken 6 | . . . . . . 1 1 1 1 1 1 . Unknown Exits Taken 4 | 1 1 1 1 . . . . . . . . . Scrap Searched 19 | . . 7 5 . . . 2 1 1 3 . . Spaces Dug 21 | . . 6 . . . 4 2 4 . 2 . 3 Terrain Destroyed 69 | . 6 18 . . . 5 2 4 . 5 26 3 Melee 21 | . . 6 . . . 4 2 4 . 2 . 3 Projectile 5 | . . . . . . . . . . 3 2 . AOE 43 | . 6 12 . . . 1 . . . . 24 . Terrain Rammed . | . . . . . . . . . . . . . Walls Destroyed . | . . . . . . . . . . . . . Machines Disabled . | . . . . . . . . . . . . . Actions | -11 -10 -10 -8 -6 -6 -6 -6 -6 -6 -5 -5 -5 --------- Run | Yrd Mat Sub Scr Fac Was Fac Low Low Zio Pro Fac DSF Total 11864 | 73 444 3143 1382 1287 409 2140 559 442 1035 673 104 173 Wait 1341 | 1 22 625 3 164 87 268 28 2 50 36 . 55 Move 9630 | 60 385 2322 1327 926 307 1669 510 431 951 590 85 67 Hop 9 | . . . . . 2 6 . 1 . . . . Pick Up 114 | 4 12 13 29 29 2 12 1 . 3 6 2 1 Fast Attach 93 | 7 . 4 9 25 1 14 4 2 11 5 2 9 Attach 41 | . . 1 . 16 1 6 . . 3 5 2 7 Detach 15 | . . . 1 5 1 2 . . 2 1 1 2 Swap 59 | . 3 18 1 17 2 15 . . 1 1 . 1 Drop 125 | . 2 29 12 20 6 27 6 2 13 6 2 . Fire 180 | 1 20 70 . 42 . 7 . . . 16 10 14 Melee 195 | . . 61 . 43 . 52 10 4 1 7 . 17 Ram . | . . . . . . . . . . . . . Kick . | . . . . . . . . . . . . . Crush . | . . . . . . . . . . . . . Escape Stasis 35 | . . . . . . 35 . . . . . . Rewire . | . . . . . . . . . . . . . Trap 24 | . . . . . . 24 . . . . . . Miscellaneous 3 | . . . . . . 3 . . . . . . Route ------- -11/Scrapyard -10/Materials (discovered 2 exits: [*Min] / *Sub) -10/Subcaves (discovered 3 exits: [*Mat x2] / *Scr) -8/Scraptown (discovered 2 exits: *Fac x2) -6/Factory (discovered 2 exits: *Low x2) -6/Waste -6/Factory (discovered 6 exits: *Fac x4 / *Low x2) -6/Lower Caves -6/Lower Caves (discovered 2 exits: Fac / *Zio) -6/Zion -5/Proximity Caves -5/Factory (discovered 2 exits: Fac / DSF) -5/DSF History --------- Turn | Location | Event 18 | -11/Scrapyard | Discovered new exit (range 15) 76 | -11/Scrapyard | Entered Materials 112 | -10/Materials | Central database locked down 234 | -10/Materials | Discovered new exit (range 13) 315 | -10/Materials | Build established: Mutant 565 | -10/Materials | Discovered new exit (range 10) 576 | -10/Materials | Entered Subcaves 577 | -10/Subcaves | Approached by a straggling Scientist 666 | -10/Subcaves | Learned location of Zion (-6) 1142 | -10/Subcaves | Scientist uncovered a shortcut to Scraptown 1320 | -10/Subcaves | Shifting Twisted Machinery released Multitool 1352 | -10/Subcaves | Shifting Twisted Machinery released Spk. Treads 1413 | -10/Subcaves | Shifting Twisted Machinery released Scrap Shield 1786 | -10/Subcaves | Visited 4L-MR0's lab 1798 | -10/Subcaves | Found Powered Cannon 1913 | -10/Subcaves | Learned Materials garrison access intel 1939 | -10/Subcaves | A swath of the cavern ceiling suddenly collapsed 1993 | -10/Subcaves | Shifting Twisted Machinery released Sub. Beam Cannon 1994 | -10/Subcaves | Discovered new exit (range 11) 2003 | -10/Subcaves | Shifting Twisted Machinery released Battle Cannon 2226 | -10/Subcaves | Core integrity fell below 50% 2346 | -10/Subcaves | Disturbed a concealed Subdweller 2440 | -10/Subcaves | A Subdweller sparked back to life 2440 | -10/Subcaves | A Subdweller sparked back to life 2470 | -10/Subcaves | Found Flightbrick 3132 | -10/Subcaves | Learned location of Mines (-9) 3169 | -10/Subcaves | A swath of the cavern ceiling suddenly collapsed 3349 | -10/Subcaves | Ambushed by angry Subdweller bent on revenge 3384 | -10/Subcaves | Discovered new exit (range 15) 4176 | -10/Subcaves | Met a Zionite searching for "candidates" 4228 | -10/Subcaves | Visited Clippyterm 4233 | -10/Subcaves | Learned Factory stockpile data 4233 | -10/Subcaves | Learned Factory emergency access door positions 4675 | -10/Subcaves | Core integrity fell below 20% 4679 | -10/Subcaves | Ambushed by angry Subdweller bent on revenge 4796 | -10/Subcaves | Entered Scraptown 4885 | -8/Scraptown | Visited UFD Registry 4888 | -8/Scraptown | Registered with UFD as "Beamdisc" 4928 | -8/Scraptown | Visited Curators Association 4967 | -8/Scraptown | Visited LU-1G1's Boring Crew 4993 | -8/Scraptown | Visited Observation Area 5045 | -8/Scraptown | Visited Modified Component R&D 5062 | -8/Scraptown | Visited Junk Repository 5111 | -8/Scraptown | Visited DA-N13 Charitable Foundation 5116 | -8/Scraptown | Found DCF Scrap (29 items) 5166 | -8/Scraptown | Delivered Scrap Shield to a Scientist 5269 | -8/Scraptown | Visited Analyses Database 5320 | -8/Scraptown | Visited Chapter 10 5757 | -8/Scraptown | Visited Spacefarers 5804 | -8/Scraptown | Visited SPCMW 5820 | -8/Scraptown | Visited Awakened 5918 | -8/Scraptown | Scanned Subdweller tech in exchange for log data 5924 | -8/Scraptown | Learned Factory terminal intel 5926 | -8/Scraptown | Learned location of Armory (-3) 5929 | -8/Scraptown | Learned Research emergency access door positions 5957 | -8/Scraptown | Discovered new exit (range 11) 6054 | -8/Scraptown | Guru changed UFD alias to "Chaindrive" 6287 | -8/Scraptown | Heard Great Nut preacher, LISTEN AND RECITE! 6656 | -8/Scraptown | Visited Comm Corps 7282 | -8/Scraptown | Build established: Hauler-Mutant 7427 | -8/Scraptown | Visited Scrap Suit Storage 7448 | -8/Scraptown | Found Scrap Suit 8294 | -8/Scraptown | Discovered new exit (range 5) 8319 | -8/Scraptown | Entered Factory 8319 | -6/Factory | Evolved 8 slots: Power x1, Propulsion x2, Utility x5 8322 | -6/Factory | Loaded intel: 26 terminal locations 8611 | -6/Factory | Build established: Hauler-Scrapper 9067 | -6/Factory | Repaired Ovr. Medium Treads 9328 | -6/Factory | Lost 8 parts (2p2n3u1w) 9344 | -6/Factory | Attached Flightbrick, gained temporary slots: Utility x3 9436 | -6/Factory | Discovered new exit (range 16) 9439 | -6/Factory | Identified exit to Lower Caves 9561 | -6/Factory | Found Prototype Processor 9561 | -6/Factory | Identified Exp. Targeting Computer 9616 | -6/Factory | Build established: Hacker-Mutant 9660 | -6/Factory | Sucked down chute 9660 | -6/Factory | Entered Waste 9661 | -6/Waste | Joined by Warlord forces that had cleared the area 9883 | -6/Waste | Discovered new exit (range 13) 9898 | -6/Waste | Identified exit to Factory 9922 | -6/Waste | Entered Factory 9922 | -6/Factory | Accompanied by 20 allies 9976 | -6/Factory | Discovered exit to Lower Caves (range 10) 10106 | -6/Factory | Scrapoids reinforcements arrived? 10120 | -6/Factory | Lost 3 allies 10393 | -6/Factory | Lost 3 allies 10447 | -6/Factory | Lost 3 allies 10457 | -6/Factory | Central database locked down 10597 | -6/Factory | Scrapoids reinforcements arrived? 10686 | -6/Factory | Garrison activated, responded to threat 10737 | -6/Factory | Lost 4 allies 10746 | -6/Factory | Fabricated Gravity Neutralizer? 10814 | -6/Factory | Learned location of 2 exits from Lower Caves 10820 | -6/Factory | Cargo convoy interrupted 10834 | -6/Factory | Discovered new exit (range 14) 10854 | -6/Factory | Learned location of 1 exit from Lower Caves 10862 | -6/Factory | Lost 6 allies 10885 | -6/Factory | Identified exit to Factory 10915 | -6/Factory | Learned 2 Hub_04(d) zone layouts 10917 | -6/Factory | Core integrity fell below 50% 10926 | -6/Factory | Learned 2 Lower Caves zone layouts 10947 | -6/Factory | Learned Hub_04(d) emergency access door positions 10972 | -6/Factory | First assault squad dispatched 11037 | -6/Factory | Build established: Hacker-Gladiator 11043 | -6/Factory | System corruption reached 10% 11119 | -6/Factory | Hacking Suite fried by hacking feedback 11178 | -6/Factory | Entered Lower Caves 11179 | -6/Lower Caves | Identified exit to Lower Caves 11180 | -6/Lower Caves | UFD Scientist delivered a prototype 11183 | -6/Lower Caves | Found Prototype Protection 11314 | -6/Lower Caves | Encountered a Warlord checkpoint 11325 | -6/Lower Caves | Learned Factory emergency access door positions 11442 | -6/Lower Caves | Entered another Lower Caves area 11443 | -6/Lower Caves | Identified exit to Zion 11454 | -6/Lower Caves | Spotted B-75 Beast 11570 | -6/Lower Caves | Attracted the attention of an 0b10 checkpoint 11623 | -6/Lower Caves | Learned 8 Factory zone layouts 11631 | -6/Lower Caves | Entered Zion 11650 | -6/Zion | System corruption cleaned by Quarantine Array 11658 | -6/Zion | System corruption cleaned by Quarantine Array 11672 | -6/Zion | Discovered new exit (range 9) 11675 | -6/Zion | Given A8's code to call for help 11776 | -6/Zion | Found Prototype Device 11776 | -6/Zion | Identified Bomb Factory No. 2 11844 | -6/Zion | Learned 4 Factory zone layouts 11865 | -6/Zion | Turned away by Imprinter 11932 | -6/Zion | Found CR-A16's Pointy Stick 12210 | -6/Zion | Identified Enh. Scrap Shield 12224 | -6/Zion | Identified exit to Proximity Caves 12224 | -6/Zion | Entered Proximity Caves 12439 | -5/Proximity Caves | Attracted the attention of an 0b10 checkpoint 12577 | -5/Proximity Caves | Core integrity fell below 20% 12578 | -5/Proximity Caves | Received a Behemoth hack from an annoying Tinkerer 12743 | -5/Proximity Caves | Build established: Hacker-Mutant 12839 | -5/Proximity Caves | Discovered exit to Factory (range 9) 12930 | -5/Proximity Caves | Learned Factory stockpile data 12944 | -5/Proximity Caves | Learned Factory terminal intel 13076 | -5/Proximity Caves | Entered Factory 13076 | -5/Factory | Evolved 2 slots: Propulsion x1, Utility x1 13077 | -5/Factory | Identified exit to Factory 13080 | -5/Factory | Loaded intel: 27 terminal locations 13104 | -5/Factory | Identified exit to DSF 13153 | -5/Factory | Attached Powered Cannon, gained temporary slot: Power 13233 | -5/Factory | Entered DSF 13292 | -5/DSF | Lost 7 parts (1p4n1u1w) 13321 | -5/DSF | Additional patrols routed to DSF 13409 | -5/DSF | Core integrity fell below 50% 13431 | -5/DSF | Core integrity fell below 20% 13465 | -5/DSF | Lost 9 parts (2n3u4w) 13492 | -5/DSF | Released all parts (9) 13508 | -5/DSF | Destroyed by X-77 Beamer with Gatling Laser Last Messages --------------- reinforcements to area. 13457_ Acquired 20 matter. 13464_ Acquired Gatling Laser. 13468_ Acquired 3 matter. 13471_ Acquired Gatling Laser. 13482_ Acquired Antimatter Reactor. 13483_ C-30 ARC bursts open, deploying its payload. 13483_ H-66 Slayer unfolds itself. 13483_ Adv. VSS Leg destroyed. 13486_ Slug penetrates Wall. 13492_ Released Antimatter Reactor. 13492_ Released Gatling Laser. 13492_ Released Adv. Cooling System. 13492_ Released Adv. Coolant Injector. 13492_ Released Lrg. Storage Unit. 13492_ Released Hacking Suite. 13492_ Released Adv. Coolant Injector. 13492_ Released Adv. Cooling System. 13492_ Released Gatling Laser. 13493_ Acquired Mak. Spear. Map ----- +----------------------------------------------------+ | | | | | | | | | | | | | | | | | | | | | | | | | | | | | | | ??????????????????????????????????????????????? | | ??????????????????????????????????????????????? | | ??????????????????????????????????????????????? | | ??????????????????????????????????????????????? | | ??????????????????????????????????#""?????????? | | ??????????????????????????????????#"#?????????? | | ?????????????????########????????##"####??????? | | ?????????????????#!!]]] #########"""""#??????? | | ?????????????# #!!]]] #[[[#[[##"""""#??????? | | ?????????? ""##"????? | | ?????????? x@ """""????? | | ?????????????????### ###[[[#x ## ""###????? | | ???????????????????#?????#[[[# ### ###??????? | | ?????????????????????????######""## %##???????? | | ??????????????????????????????###[[ [#???????? | | ????????????????????????????????#[[ [#???????? | | ???????????????????????????????#### ##???????? | | ???????????????????????????????#" #???????? | | ???????????????????????????????## ^^ #???????? | | ????????????????????????????????# [ %#???????? | | ?????????????????????????????#?#"##] ###??????? | | ?????????????????????????#[[[# ##!!!!#??????? | | ?????????????????????????#[[[" [!*[!!#??????? | | ???????????????????? "%" H !!!!! #??????? | | ???????????????????? " =[! #??????? | | ???????????????????? #??????? | | ????????????????????? ##!!!# "# !!#??????? | | ?????????????????????????#!!!# ## !!#??????? | | ?????????????????????????###?####?######??????? | | ??????????????????????????????????????????????? | | ??????????????????????????????????????????????? | | ??????????????????????????????????????????????? | | ??????????????????????????????????????????????? | | ??????????????????????????????????????????????? | | ??????????????????????????????????????????????? | +----------------------------------------------------+ Best States ------------- Heat Dissipation 71 Coolant Potential 200 Energy Generation 31 Energy Capacity 360 Matter Stores 300 Matter Capacity 300 Sight Range 21 Robot Scan Range 15 Terrain Scan Density 10 Jamming Range 12 Additional Mass Support 12 Armor Coverage 800 Resistance: KI 20 Utility Shielding 66 Melee Speed Boost 20 Evasion (%) 62 Targeting Accuracy 12 Melee Accuracy 8 Core Analysis 6 Recoil Reduction 2 Offensive Hacking 20 Defensive Hacking 22 Item Schematics ----------------- Adv. Coolant Injector | -6/Factory | Hacked Lgt. Angular Momentum Engine | -6/Factory | Hacked Hacking Suite | -6/Factory | Scanalyzed Imp. Utility Shielding | -6/Factory | Scanalyzed Mak. Spear | -6/Factory | Scanalyzed Imp. Propulsion Shielding | -6/Factory | Scanalyzed Multitool | -6/Factory | Scanalyzed Force Rifle | -6/Factory | Scanalyzed Imp. Proton Missile Launcher | -6/Factory | Scanalyzed Gravity Neutralizer | -6/Factory | Hacked Adv. Sensor Array | -6/Factory | Hacked Imp. Surge Thruster | -6/Factory | Hacked Imp. Trap Extractor | -6/Factory | Hacked Phasing Sabre | -6/Factory | Scanalyzed Mic. Antimatter Reactor | -6/Factory | Scanalyzed Transmission Jammer | -6/Factory | Scanalyzed Matter Compressor | -6/Zion | Archive Adv. Field Recycling Unit | -6/Zion | Archive Power Sword | -6/Zion | Archive Imp. Kinecellerator | -6/Zion | Archive Adv. Terrain Scanner | -6/Zion | Archive Imp. Weapon Cycler | -6/Zion | Archive Proton Cannon | -6/Zion | Archive Railgun | -6/Zion | Archive Myomer Leg | -6/Zion | Archive Fusion Compressor | -6/Zion | Archive Tesla Rifle | -6/Zion | Archive Imp. KE Penetrator | -6/Zion | Archive Imp. Shock Absorption System | -6/Zion | Archive Disruptor Cannon | -6/Zion | Archive Riot Gun | -6/Zion | Free Flamer | -6/Zion | Free Hvy. Riot Gun | -6/Zion | Free Barrage Gun | -6/Zion | Free Hvy. Hardcell Cannon | -5/Factory | Scanalyzed CPS Tube | -5/Factory | Scanalyzed Mak. Flight Unit | -5/Factory | Scanalyzed System Shield | -5/Factory | Extracted Imp. Coolant Injector | -5/Factory | Extracted Gravmag Array | -5/Factory | Extracted Imp. Energy Well | -5/Factory | Extracted Stasis Canceller | -5/Factory | Extracted Hvy. Treads | -5/Factory | Extracted Hvy. Machine Gun | -5/Factory | Extracted Core Analyzer | -5/Factory | Extracted Recalibrator | -5/Factory | Extracted Robot Schematics ------------------ M-28 Smith | -6/Factory | Hacked A-02 Transporter | -6/Zion | Archive B-48 Gladiator | -6/Zion | Archive Fabricated ------------ Gravity Neutralizer | x1 | -6/Factory Repaired ---------- Ovr. Medium Treads | 37% | -6/Factory Alien Tech Used ----------------- None Achievements -------------- None Challenges ------------ None Game ------ Seed PowerUtilityProjector Manual? 0 Play Time 02:29:44 Cumulative 550.0 hours Start 2024.11.14 @ 02:12:11 End 2024.11.14 @ 19:08:00 Sessions 4 Manual Loads 0 Difficulty Rogue Special Mode None Game No. 208 Rogue 203 Adventurer 4 Explorer 1 Win Type - Total 7 Types 4/1/0/1/0/1/0/0/0 Lore% 89 Gallery% 92 Achievement% 87 Wizard Run 0 Options --------- Layout 0 ASCII 0 Keyboard 0 Movement Numpad Keybinds 0 Fullscreen 2 Font 18/CogNarrow Map View 76x50 Zoom Use 0% Tactical HUD 1 Map Filters NONE Filters NONE Steam 1 RUN: 6002c115-562c-4f48-b753-9f8c7d6a6f6e